Cogmind - Beta 14 @@@ ROGUE MODE // 2024.08.07 @ 23:25:37 Player: alice_fexa Result: Heading to fleet! Performance ------------- Evolutions (9) 4500 Regions Visited (28) 5600 Robots Destroyed (376) 1880 Value Destroyed (18711) 18711 Prototype IDs (68) 1360 Alien Tech Used (9) 1800 Bonus (26935) 26935 TOTAL SCORE: 60786 Bonus ------- Triggered High Security 500 High Alert Combat Kills 4045 Follower Combat Kills 2691 Network Hubs Disabled 200 Met Data Miner 300 Built Enhanced Grunts 300 A7 Reached Mainframe 300 Met R17 at Cetus 500 Used Core Reset Matrix 3000 Met R17 at Research 2000 Destroyed MAIN.C Guards 500 Met MAIN.C 5000 Destroyed MAIN.C Shell 5000 Win 3000 Friendly Fire -401 Cogmind --------- Core Integrity 754/1600 Matter 45/300 Energy 88/100 System Corruption 14% Temperature Cool (4) Movement Flying (66) Location To Fleet Rendezvous Parts ------- > --- POWER (2) -------- (None) > --- PROPULSION (6) --- Flying QT-Heavy Exoskeleton > --- UTILITY (14) ----- Scrap Engine Experimental Optical Array Experimental Core Analyzer Centrium Medium Armor Plating Centrium Medium Armor Plating Spacefold Activator > --- WEAPON (4) ------- Advanced KE Penetrator Compact Mass Driver > --- INVENTORY (7) ---- Light Quantum Reactor Light Quantum Reactor Advanced Energy Well (500) Advanced Particle Charger Advanced Component Analysis Suite Transdimensional Reconstructor Transdimensional Reconstructor Peak State ------------ > --- POWER ------------ Light Quantum Reactor Improved Quantum Reactor > --- PROPULSION ------- Flying QT-Heavy Exoskeleton Diametric Drive > --- UTILITY ---------- Armored Scrap Engine High-capacity Storage Unit Advanced Weight Redist. System Experimental Optical Array Improved Targeting Computer Experimental Targeting Computer Experimental Core Analyzer Experimental Reaction Control System Centrium Light Armor Plating Centrium Heavy Armor Plating Advanced Force Field Spacefold Activator > --- WEAPON ----------- Hypervelocity Multirail Compact Linear Accelerator Hvy. Kinetic Penetrator Construct/C > --- INVENTORY -------- Quantum Reactor Light Quantum Reactor Light Quantum Reactor Advanced Energy Well Experimental Energy Well Advanced Matter Compressor Advanced Particle Charger Centrium Medium Armor Plating Centrium Medium Armor Plating SHELL Armor Advanced Force Field Antimissile System Advanced Component Analysis Suite High-powered Tractor Beam Transdimensional Reconstructor Transdimensional Reconstructor Integrity Redistributor Advanced KE Penetrator Compact Mass Driver Mini Smartbomb Launcher [Rating: 228] Favorites ----------- Power Enhanced Nuclear Core Engine Heavy Ion Engine Power Core Enhanced Nuclear Core Reactor Improved Quantum Reactor Propulsion Constructs Treads Light Treads Wheel Wheel Flight Unit Constructs Utility Armored Scrap Engine Device Armored Scrap Engine Storage Large Storage Unit Processor Advanced Signal Interpreter Hackware Improved Hacking Suite Protection Light Regenerative Plating Artifact Spacefold Activator Weapon Constructs Energy Gun Particle Gun Energy Cannon Advanced Beam Cannon Ballistic Gun Hypervelocity Multirail Ballistic Cannon Constructs Launcher Mini Smartbomb Launcher Special Weapon Plasma Cutter Impact Weapon Maul Special Melee Weapon Improved Datajack Build | -11 -10 -10 -9 -9 -9 -7 -7 -7 -6 -6 -6 -6 -5 -5 -5 -5 -4 -4 -4 -4 -4 -3 -3 -3 -2 -2 -1 -1 ------- Run | Yrd Mat Min Mat Sto Rec Fac Low Low Fac Low Low Dat Pro Fac Upp Upp Fac Ext Cet Arc Hub Res Qua Sec Res Tes Acc Com Slots Evolved 18 | . . . 2 . . 4 . . 2 . . . . 2 . . 2 . . . . 2 . . 2 . 2 . Power 1 | . . . . . . . . . . . . . . 1 . . . . . . . . . . . . . . Propulsion 3 | . . . . . . 1 . . . . . . . 1 . . . . . . . . . . . . 1 . Utility 12 | . . . 2 . . 2 . . 2 . . . . . . . 2 . . . . 2 . . 2 . . . Weapon 2 | . . . . . . 1 . . . . . . . . . . . . . . . . . . . . 1 . Parts Attached 535 | 6 15 4 39 2 5 12 2 . 20 9 . 2 10 18 7 6 14 37 16 4 11 18 38 78 19 23 58 62 Power 42 | 1 3 . 1 . 1 3 . . 2 . . . . 3 . . 4 8 1 1 . 2 1 6 3 1 . 1 Engine 10 | 1 3 . 1 . 1 2 . . 1 . . . . . . . . 1 . . . . . . . . . . Core 10 | . . . . . . 1 . . 1 . . . . 3 . . 2 2 . . . . . . 1 . . . Reactor 22 | . . . . . . . . . . . . . . . . . 2 5 1 1 . 2 1 6 2 1 . 1 Propulsion 19 | 2 2 1 11 1 1 . . . . . . . . . . . . . . . . . . . . . 1 . Treads 15 | 2 2 1 8 1 1 . . . . . . . . . . . . . . . . . . . . . . . Leg . | . . . . . . . . . . . . . . . . . . . . . . . . . . . . . Wheel 3 | . . . 3 . . . . . . . . . . . . . . . . . . . . . . . . . Hover . | . . . . . . . . . . . . . . . . . . . . . . . . . . . . . Flight 1 | . . . . . . . . . . . . . . . . . . . . . . . . . . . 1 . Utility 350 | 1 4 . 9 1 2 5 . . 17 2 . . 2 14 2 6 7 24 9 3 10 14 35 55 15 16 53 44 Device 238 | . 3 . 3 . 1 2 . . 9 1 . . 2 10 2 3 5 13 4 2 8 8 27 37 10 12 46 30 Storage 10 | 1 1 . . . . . . . . . . . . 1 . . . 1 1 . . 1 1 . 1 . . 2 Processor 19 | . . . 1 . 1 . . . 1 . . . . 1 . . 1 . . . 1 2 . 5 2 1 . 3 Hackware 5 | . . . . . . . . . 1 . . . . . . . . 1 . . . . . 1 . . 2 . Protection 69 | . . . 5 1 . 3 . . 6 1 . . . 2 . 3 1 9 4 1 1 3 7 9 1 2 4 6 Artifact 9 | . . . . . . . . . . . . . . . . . . . . . . . . 3 1 1 1 3 Weapon 124 | 2 6 3 18 . 1 4 2 . 1 7 . 2 8 1 5 . 3 5 6 . 1 2 2 17 1 6 4 17 Energy Gun 31 | . 5 3 7 . . . . . . . . . . . . . . . 2 . 1 1 2 5 1 2 2 . Energy Cannon 10 | . . . 7 . 1 . . . . . . . . . 1 . . . . . . 1 . . . . . . Ballistic Gun 18 | 2 1 . . . . . . . . . . . . . . . . 2 2 . . . . 4 . 3 1 3 Ballistic Cannon 29 | . . . . . . 3 1 . 1 3 . 1 4 1 . . 2 . 1 . . . . 2 . . 1 9 Launcher 30 | . . . 1 . . 1 1 . . 4 . . 4 . 3 . . 3 1 . . . . 6 . 1 . 5 Special Weapon 2 | . . . . . . . . . . . . 1 . . . . 1 . . . . . . . . . . . Impact Weapon 3 | . . . 3 . . . . . . . . . . . . . . . . . . . . . . . . . Slashing Weapon . | . . . . . . . . . . . . . . . . . . . . . . . . . . . . . Piercing Weapon . | . . . . . . . . . . . . . . . . . . . . . . . . . . . . . Special Melee Weapon 1 | . . . . . . . . . . . . . . . 1 . . . . . . . . . . . . . Unidentified Prototypes 26 | . 1 . 1 . 1 1 . . 2 . . . . . 1 . . . 5 . . 1 1 6 . 2 2 2 Parts Lost 35 | . . . 3 . 2 . . . 2 . . . . 1 . . 1 1 . . . . 1 4 . . . 20 Power 2 | . . . . . . . . . . . . . . . . . . . . . . . . . . . . 2 Propulsion 4 | . . . 1 . 1 . . . . . . . . . . . . . . . . . . . . . . 2 Utility 21 | . . . 1 . 1 . . . 1 . . . . 1 . . . 1 . . . . 1 4 . . . 11 Weapon 8 | . . . 1 . . . . . 1 . . . . . . . 1 . . . . . . . . . . 5 Highest Loss Streak 9 | . . . 2 . 1 . . . 1 . . . . 1 . . 1 1 . . . . 1 2 . . . 9 To Critical Strikes 3 | . . . 1 . . . . . . . . . . . . . . . . . . . . 1 . . . 1 Average Slot Usage (%) 75 | . 99 100 99 100 81 72 69 69 71 73 73 73 72 69 68 66 69 69 69 70 70 72 71 71 69 67 68 68 Engine 3 | . 14 14 11 11 11 5 . . 1 . . . . . . . . 1 . . . . . . . . . . Core 2 | . . . . . . 1 7 7 4 6 6 6 6 10 11 11 7 3 . . . . . . . . . . Reactor 3 | . . . . . . . . . . . . . . . . . 2 4 10 10 10 9 9 9 8 8 7 6 Treads 5 | . 28 28 17 11 9 2 . . 2 6 6 6 6 . . 2 5 1 5 5 5 2 . . . . . . Leg 1 | . . . . . 5 2 . . . . . . . 5 5 2 . 3 . . . . . . . . . . Flight 1 | . . . . . . . . . . . . . . . . . . . . . . . 4 4 4 4 3 6 Device 15 | . 13 14 21 11 10 15 15 15 17 12 13 13 18 11 11 11 14 13 15 16 14 13 19 18 15 15 14 17 Storage 6 | . 14 14 11 11 11 7 7 7 6 6 6 6 6 5 5 5 5 5 5 5 5 4 4 4 4 4 3 2 Processor 10 | . . . . 11 11 7 7 7 7 13 13 13 13 15 11 11 14 13 10 10 10 13 13 13 16 16 15 14 Hackware 2 | . . . . . . . . . 1 6 6 6 6 5 5 5 5 5 5 5 5 4 1 2 4 4 6 1 Protection 6 | . . . 10 11 4 7 7 7 10 6 6 6 1 . 5 5 5 7 9 8 10 13 9 9 8 5 2 4 Energy Gun 3 | . 18 28 12 . 2 4 . . . . . . . . . . . . 2 . 3 4 4 2 . 2 1 . Energy Cannon 2 | . . . 9 22 11 . . . . . . . . . . . . 1 5 5 5 4 4 3 4 4 . . Ballistic Gun 1 | . 9 . . . 2 1 . . . . . . . . . . . 4 . 5 1 . . . . . 1 2 Ballistic Cannon 4 | . . . . . . 12 14 15 13 12 13 6 12 10 5 5 8 3 . . . . . . . . 2 5 Launcher 1 | . . . . . . . . . . . . . . . 4 5 . . . . . . . 1 3 . 3 1 Peak Build Rating 228 | 6 14 14 21 21 40 58 57 57 77 77 75 75 79 93 94 96 109 128 138 139 139 161 164 176 192 212 220 228 Average Rating 105 | 4 11 13 18 21 29 52 56 57 69 75 75 72 78 91 92 93 106 117 129 136 138 155 156 163 185 198 204 208 On Entrance 92 | . 6 14 14 21 21 36 57 57 57 77 75 75 75 79 92 93 96 104 128 138 139 138 155 158 173 188 212 211 Naked Turns . | . . . . . . . . . . . . . . . . . . . . . . . . . . . . . Heaviest Build 146 | 12 33 34 41 40 40 45 44 44 54 69 65 65 67 52 51 55 63 94 97 103 108 109 129 134 131 132 125 146 Greatest Support 169 | 40 40 40 40 16 40 60 44 44 67 67 67 67 67 67 53 53 78 169 169 169 169 169 132 132 132 132 139 148 Greatest Overweight (x) 4 | 1 . . 4 2 2 1 . . 1 1 . . . . . 1 1 1 . . . 1 . 1 . . . . Average Overweight (x) . | . . . 1 2 . . . . . . . . . . . . . . . . . . . . . . . . Largest Inventory Capacity 22 | 8 15 15 15 15 15 15 15 15 15 15 15 15 15 15 15 15 15 20 20 20 20 20 20 22 22 22 22 22 Average Capacity 17 | 7 13 15 15 15 15 15 15 15 15 15 15 15 15 15 15 15 15 15 20 20 20 20 20 20 22 22 22 21 Most Carried 22 | 4 15 15 15 15 15 15 15 15 15 15 15 15 15 15 15 15 15 20 20 20 20 20 20 22 22 22 22 22 Average Carried 16 | 2 12 15 14 15 14 14 15 15 14 15 15 15 14 14 14 14 14 15 19 20 20 19 19 20 21 21 21 20 Final Capacity 22 | 8 15 15 15 15 15 15 15 15 15 15 15 15 15 15 15 15 15 20 20 20 20 20 20 22 22 22 22 7 Final Carried 22 | 4 15 15 15 15 14 15 15 15 15 15 15 15 15 14 15 15 15 20 20 20 20 20 20 22 22 22 22 7 Scrap Engine Consumption 130 | . . . . . 24 11 . . 18 5 . . . 2 . 6 5 24 10 . . 10 1 6 2 4 2 . Constructs Created 2 | . . . . . 2 . . . . . . . . . . . . . . . . . . . . . . . Constructs Modified 51 | . . . . . 6 6 . . 3 . . . 1 6 1 3 2 11 . . . 8 . 3 . . 1 . Class Distribution -------------------- 17% | Construct 15% | Skirmisher 14% | Alien-Scout 9% | Scavenger-Mutant 9% | Mutant 6% | Gunner 5% | Scavenger-Skirmisher 4% | Scout 3% | Commander-Gunner 3% | Alien-Gunner 3% | Alien-Tank Dominant Class ---------------- Mutant | -10/Materials Mutant | -10/Mines Scavenger-Mutant | -9/Materials Scavenger-Mutant | -9/Storage Construct | -9/Recycling Construct | -7/Factory Construct | -7/Lower Caves Construct | -7/Lower Caves Construct | -6/Factory Construct | -6/Lower Caves Construct | -6/Lower Caves Construct | -6/Data Miner Construct | -5/Proximity Caves Skirmisher | -5/Factory Skirmisher | -5/Upper Caves Skirmisher | -5/Upper Caves Gunner | -4/Factory Commander-Gunner | -4/Extension Scavenger-Gunner | -4/Cetus Scavenger-Gunner | -4/Archives Scavenger-Skirmisher | -4/Hub_04(d) Scavenger-Skirmisher | -3/Research Scout | -3/Quarantine Alien-Scout | -3/Section 7 Alien-Scout | -2/Research Alien-Scout | -2/Testing Alien-Scout | -1/Access Alien-Gunner | -1/Command Resources | -11 -10 -10 -9 -9 -9 -7 -7 -7 -6 -6 -6 -6 -5 -5 -5 -5 -4 -4 -4 -4 -4 -3 -3 -3 -2 -2 -1 -1 ----------- Run | Yrd Mat Min Mat Sto Rec Fac Low Low Fac Low Low Dat Pro Fac Upp Upp Fac Ext Cet Arc Hub Res Qua Sec Res Tes Acc Com Matter Collected 12001 | 204 407 40 410 10 61 330 100 . 585 312 9 . 364 510 327 157 587 973 232 54 117 238 466 1291 200 439 1196 2382 Remotely 1454 | . . . . . . . . . . . . . . . . . . . . . . . . 20 . . . 1434 Salvage Created 19855 | . 768 301 1467 378 504 325 200 . 796 361 44 . 559 747 715 197 451 1667 110 62 249 511 853 1389 260 489 1601 4851 Parts 930 | . 48 13 76 14 27 18 7 . 25 10 1 . 27 30 17 11 12 74 5 8 15 21 41 74 19 30 131 176 Haulers Intercepted 8 | . 2 . 3 . . 1 . . 1 . . . . . . . . . . . . . 1 . . . . . Recyclers Shooed 9 | . . . 1 . 1 2 . . 1 . . . . . . . 1 1 . . . . . . . . 1 1 Parts Field Recycled . | . . . . . . . . . . . . . . . . . . . . . . . . . . . . . Retrieved Matter . | . . . . . . . . . . . . . . . . . . . . . . . . . . . . . Parts Self-Destructed 50 | . . . . . . . . . . 20 2 . 8 . 10 10 . . . . . . . . . . . . Prevented 15 | . . . . . . . 5 . . . 1 . 8 . 1 . . . . . . . . . . . . . Kills | -11 -10 -10 -9 -9 -9 -7 -7 -7 -6 -6 -6 -6 -5 -5 -5 -5 -4 -4 -4 -4 -4 -3 -3 -3 -2 -2 -1 -1 ------- Run | Yrd Mat Min Mat Sto Rec Fac Low Low Fac Low Low Dat Pro Fac Upp Upp Fac Ext Cet Arc Hub Res Qua Sec Res Tes Acc Com Combat Hostiles Destroyed 278 | . 17 6 25 6 6 6 3 . 15 7 1 . 17 11 10 4 . 16 2 . 4 5 11 20 3 2 16 65 Guns 94 | . 17 6 12 . . 2 . . . . . . . . . . . 4 . . 2 . 2 8 . 2 13 26 Cannons 115 | . . . 8 6 6 3 1 . 15 3 1 . 2 11 . 1 . 8 2 . 2 5 9 10 3 . 3 16 AOE 66 | . . . 5 . . 1 2 . . 4 . . 13 . 10 3 . 3 . . . . . 2 . . . 23 Classes Destroyed 29 | . 5 4 3 . 2 1 1 . 1 . . . 1 1 . . . 1 . . . 1 . 2 . 1 . 5 Worker 10 | . 1 . 2 . . . . . . . . . . 1 . . 1 . . . . . . . . 1 . 4 Builder 17 | . . 1 . . . 1 . . . . . . . 2 . . 1 2 . . . 1 1 3 . . 5 . Tunneler 2 | . . 1 . . . . . . . . . . . . . . . . . . . . . . . . 1 . Hauler 8 | . 2 . 3 . . 1 . . 1 . . . . . . . . . . . . . 1 . . . . . Recycler 26 | . . 1 4 1 1 1 . . 1 . . . . 1 . . 4 4 . . . . 1 1 . 1 2 3 Carrier 3 | . . . . . . . . . . . . . . . . . . . . . . . . . . . . 3 Mechanic 2 | . . . . . . . . . . . . . . . . . . . . . . . . 1 . 1 . . Operator 8 | . . . 2 . . . . . . . . . . . . . . . . 2 1 1 . . . . 1 1 Drone 2 | . . . . . . . . . . . . . 2 . . . . . . . . . . . . . . . Watcher 25 | . 2 . 2 . . 1 . . . . . . . 1 . . . 2 . . . 2 1 1 2 2 5 4 Swarmer 43 | . 3 1 4 . . . . . . 1 . . 4 . 6 2 . . . . . . 3 3 . . . 16 Saboteur 4 | . . . . . . . . . . . . . . . . . . . . . . . . . . . . 4 Grunt 105 | . 14 4 10 2 . 2 3 . 6 5 1 . 10 6 3 . . 7 . . 4 . 4 . . . 1 23 Brawler 15 | . . . 3 1 . 1 . . 1 1 . . . 1 1 . . 2 . . . . . . . . . 4 Duelist 4 | . . . . . . . . . 1 . . . . . . . . . . . . . . . . . . 3 Protector 2 | . . . . . . . . . . . . . . . . . . . . . . . . . . . . 2 Researcher 1 | . . . . . . . . . . . . . . . . . . . . . . . . . . 1 . . Sentry 31 | . . . 8 3 3 1 . . 2 . . . . . . 1 . 6 . . . 3 . 2 1 . 1 . Hunter 5 | . . . . . . . . . . . . . . 1 . 1 . . . . . . . . . . 1 2 Programmer 46 | . . . . . . 2 . . 5 . . . 1 3 . . . . . . . 1 4 9 2 2 13 4 Behemoth 1 | . . . . . . . . . . . . . . . . . . 1 . . . . . . . . . . Cetus Guard 2 | . . . . . . . . . . . . . . . . . . . 2 . . . . . . . . . S7 Guard 2 | . . . . . . . . . . . . . . . . . . . . . . . . 2 . . . . M Guard 2 | . . . . . . . . . . . . . . . . . . . . . . . . . . . . 2 Combat Programmer 2 | . . . . . . . . . . . . . . . . . . . . . . . . . . . . 2 Striker 1 | . . . . . . . . . . . . . . . . . . . . . . . . . . . . 1 Executioner 4 | . . . . . . . . . . . . . . . . . . . . . . . . 4 . . . . Alpha 7 1 | . . . . . . . . . . . . . . . . . . . . . . . . . . . . 1 Scientist 1 | . . . . . 1 . . . . . . . . . . . . . . . . . . . . . . . Scrapper 3 | . . . . . 3 . . . . . . . . . . . . . . . . . . . . . . . Samaritan 2 | . . . . . . . 1 . . . . . . . 1 . . . . . . . . . . . . . Assembled 1 | . . 1 . . . . . . . . . . . . . . . . . . . . . . . . . . Revision 1 | . . . . . . . . . . . . . . . . . . . . . . 1 . . . . . . Best Kill Streak 12 | . 3 3 11 4 2 6 3 . 4 3 1 . 5 7 4 3 2 5 1 2 4 2 3 4 2 1 7 12 Combat Bots Only 11 | . 3 2 10 4 2 4 3 . 4 3 1 . 5 5 4 3 . 4 1 . 4 1 3 3 2 1 6 11 Max Kills in Single Turn 5 | . 1 1 3 2 1 2 1 . 1 2 1 . 4 2 4 2 1 2 1 1 1 1 1 3 1 1 2 5 Gunslinging . | . . . . . . . . . . . . . . . . . . . . . . . . . . . . . Exploded 5 | . . . 2 . . 1 1 . . 2 . . 4 . 4 2 . 2 . . . . . 2 . . . 5 Melee . | . . . . . . . . . . . . . . . . . . . . . . . . . . . . . Uniques/NPCs Destroyed 1 | . . . . . . . . . . . . . . . . . . . . . . . . . . . . 1 MAIN.C Shell (-1/Command) Combat | -11 -10 -10 -9 -9 -9 -7 -7 -7 -6 -6 -6 -6 -5 -5 -5 -5 -4 -4 -4 -4 -4 -3 -3 -3 -2 -2 -1 -1 -------- Run | Yrd Mat Min Mat Sto Rec Fac Low Low Fac Low Low Dat Pro Fac Upp Upp Fac Ext Cet Arc Hub Res Qua Sec Res Tes Acc Com Hostile Shots Fired 1845 | . 62 27 84 12 19 47 11 . 131 15 . . 55 49 . 9 28 54 11 5 47 16 88 221 6 24 30 794 Missed 742 | . 14 9 32 3 3 17 2 . 53 5 . . 21 16 . 3 8 14 6 1 15 6 34 71 2 13 12 382 Intercepted 7 | . . . . . . . . . . . . . . . . . . . . . . . . . . . . 7 Damage Taken 21624 | . 532 208 725 134 354 386 142 . 999 179 . . 656 714 . 127 395 991 145 102 629 315 915 2866 126 220 232 9532 Core 1863 | . 95 85 45 15 63 42 36 . 115 39 . . 40 18 . 26 67 17 . . 22 . 55 306 58 29 41 649 Absorbed by Shields 4671 | . . . . . . . . . . . . . . . . . . . 39 . . . 216 1564 18 67 188 2579 Reduced by Siege Mode 17 | . . . . . . . . . . . . . . . . . . . 7 . 10 . . . . . . . Ignored by Resistances 538 | . . . . . . . . . . 4 . . . . . . . . . . . . . . 13 37 113 371 Regen/Repaired (Parts) 7753 | . . . . . . 117 . . 360 115 . . 68 568 338 292 11 775 39 . 18 718 176 385 . 63 332 3378 Core Remaining (%) 76 | 100 . 28 . . 69 . . 88 . . . . 77 . . 95 . . . . 90 . . 72 . 94 . 47 Volleys Fired 1206 | . 59 26 79 11 18 30 18 . 59 24 1 . 29 46 14 6 80 68 10 8 19 35 79 137 42 35 74 199 Largest 3 | . 2 2 2 2 2 3 1 . 2 2 2 . 2 2 1 1 2 2 2 2 2 2 2 2 2 2 2 3 Hottest 313 | . 105 115 136 136 136 160 88 . 136 136 136 . 149 194 146 146 194 181 240 127 240 313 153 313 167 167 167 209 Shots Fired 1962 | . 117 52 155 22 35 68 18 . 105 35 2 . 35 74 15 6 82 121 13 12 32 50 118 217 47 42 90 399 Gun 705 | . 117 52 112 . . 16 . . . . . . . . . . . 57 1 4 19 22 39 90 5 13 41 117 Cannon 1200 | . . . 40 22 35 50 14 . 105 28 2 . 21 74 10 4 82 56 12 8 13 28 79 126 42 29 49 271 Launcher 57 | . . . 3 . . 2 4 . . 7 . . 14 . 5 2 . 8 . . . . . 1 . . . 11 Special . | . . . . . . . . . . . . . . . . . . . . . . . . . . . . . Kinetic 1095 | . 51 . . . . 50 14 . 105 28 2 . 21 74 10 4 82 113 12 12 14 10 . 40 . 9 56 388 Thermal 810 | . 66 52 152 22 35 16 . . . . . . . . . . . . 1 . 18 40 118 176 47 33 34 . Explosive 40 | . . . 3 . . 2 . . . 7 . . 8 . 5 2 . 1 . . . . . 1 . . . 11 Electromagnetic 17 | . . . . . . . 4 . . . . . 6 . . . . 7 . . . . . . . . . . Robot Hit Streak 48 | . 7 11 8 8 14 6 7 . 15 5 1 . 6 16 15 19 40 24 4 9 11 10 12 11 12 24 10 48 Robot Miss Streak 5 | . 4 4 4 2 1 2 1 . 2 2 1 . 2 4 . . 1 2 1 1 2 4 4 5 1 1 4 5 Penetration Max 2 | . . . . . . . . . . . . . . 1 1 . . 1 1 . 1 1 . 1 . . 2 2 Secondary Targets 3 | . 2 . 1 . . . . . . . . . . . . . . . . . . . . . . . . . Max Gunslinging Chain 1 | . 1 . 1 . . . . . . . . . . . . . . . . . . . . . . . . . Shots Hit Robots 1199 | . 71 36 95 14 26 38 8 . 75 16 1 . 16 44 7 4 31 90 8 9 17 25 56 125 15 16 45 311 Core Hits 747 | . 39 16 46 6 11 15 7 . 28 12 1 . 27 22 24 6 12 56 6 2 10 11 24 48 9 12 46 251 Critical Kills 61 | . 1 . . 1 . . . . . . . . . . . . . 1 . . . . . 3 . 3 18 34 Critical Parts Destroyed 87 | . . . . . . . . . . . . . . . . . . . . . 1 . . 5 1 3 16 61 Critical Strikes 189 | . 2 2 6 1 . 1 1 . 1 . . . 1 2 . . 1 4 . . 1 . . 9 1 6 35 115 Burn 10 | . 1 2 6 . . . . . . . . . . . . . . . . . . . . 1 . . . . Meltdown 1 | . . . . 1 . . . . . . . . . . . . . . . . . . . . . . . . Destroy 165 | . 1 . . . . . . . . . . . . . . . . 2 . . 1 . . 8 1 6 35 111 Blast 13 | . . . . . . 1 1 . 1 . . . 1 2 . . 1 2 . . . . . . . . . 4 Melee Attacks 3 | . . . 3 . . . . . . . . . . . . . . . . . . . . . . . . . Impact 3 | . . . 3 . . . . . . . . . . . . . . . . . . . . . . . . . Slashing . | . . . . . . . . . . . . . . . . . . . . . . . . . . . . . Piercing . | . . . . . . . . . . . . . . . . . . . . . . . . . . . . . Sneak Attacks . | . . . . . . . . . . . . . . . . . . . . . . . . . . . . . Combat Hostiles . | . . . . . . . . . . . . . . . . . . . . . . . . . . . . . Follow-up Attacks . | . . . . . . . . . . . . . . . . . . . . . . . . . . . . . Damage Inflicted 48886 | . 881 532 2012 313 535 1156 432 . 2671 996 42 . 1961 2791 1585 421 1079 4180 587 502 858 1207 2487 5538 634 641 1546 13299 Guns 9880 | . 881 532 1078 . . 157 . . . . . . . . . . . 1112 . 73 332 212 785 1854 171 250 680 1763 Cannons 31636 | . . . 536 313 535 839 201 . 2671 495 42 . 370 2791 746 224 1079 2471 587 429 521 995 1702 3519 463 391 866 8850 Explosions 7365 | . . . 398 . . 160 231 . . 501 . . 1591 . 839 197 . 597 . . . . . 165 . . . 2686 Melee . | . . . . . . . . . . . . . . . . . . . . . . . . . . . . . Ramming 5 | . . . . . . . . . . . . . . . . . . . . . 5 . . . . . . . Kinetic 27751 | . 277 . . . . 839 201 . 2671 495 42 . 370 2791 746 224 1079 3583 587 502 545 437 . 742 . 160 847 10613 Thermal 13882 | . 604 532 1614 313 535 157 . . . . . . 64 . . . . 53 . . 308 770 2487 4631 634 481 699 . Explosive 6240 | . . . 398 . . 160 . . . 501 . . 1070 . 839 197 . 224 . . . . . 165 . . . 2686 Electromagnetic 1008 | . . . . . . . 231 . . . . . 457 . . . . 320 . . . . . . . . . . Impact . | . . . . . . . . . . . . . . . . . . . . . . . . . . . . . Slashing . | . . . . . . . . . . . . . . . . . . . . . . . . . . . . . Piercing . | . . . . . . . . . . . . . . . . . . . . . . . . . . . . . Highest Corruption 14 | . . . . 1 1 1 1 1 1 1 1 1 1 3 3 3 2 2 2 2 4 2 4 10 1 2 3 14 Average Corruption 2 | . . . . 1 1 1 1 1 1 1 1 1 1 1 3 2 1 2 2 1 2 2 2 9 1 1 1 4 Corruption Purged 8 | . . . . . . . . . . . . . . . . 3 . . . 2 . . . . . . . 3 Corruption Blocked . | . . . . . . . . . . . . . . . . . . . . . . . . . . . . . Effects 255 | . . . . . 9 6 5 1 3 5 1 . 4 4 13 18 . 41 10 2 . 7 23 42 1 6 18 36 Message Errors 72 | . . . . . 4 1 1 . . 1 . . 1 2 2 6 . 15 3 2 . 2 4 14 1 1 5 7 Matter Fused 64 | . . . . . 1 2 2 1 2 . 1 . 1 . 4 3 . 11 5 . . 2 4 8 . 2 8 7 Heat Flow Errors 21 | . . . . . . . . . . 2 . . . 1 2 2 . 1 1 . . . 2 4 . 2 2 2 Energy Discharges 23 | . . . . . 3 2 . . . . . . 1 . 1 3 . 3 . . . . 2 3 . . . 5 Parts Rejected 4 | . . . . . . . . . . . . . . . . . . . . . . . 1 1 . . . 2 Parts Fused 5 | . . . . . . . 1 . . . . . . . . . . 2 . . . . 1 . . . . 1 Data Loss (minor) 32 | . . . . . . . 1 . 1 1 . . . 1 3 4 . 4 1 . . 1 4 5 . 1 3 2 Data Loss (major) 10 | . . . . . 1 . . . . . . . . . . . . 2 . . . 1 2 2 . . . 2 Misfires 10 | . . . . . . 1 . . . 1 . . . . 1 . . 3 . . . 1 1 1 . . . 1 Alerts 3 | . . . . . . . . . . . . . 1 . . . . . . . . . . . . . . 2 Misdirections 5 | . . . . . . . . . . . . . . . . . . . . . . . . 2 . . . 3 Weapon Failures 6 | . . . . . . . . . . . . . . . . . . . . . . . 2 2 . . . 2 Overload Shots 19 | . . . . . . . . . . . . . . . . . . . 1 . 2 1 . 15 . . . . Effects 1 | . . . . . . . . . . . . . . . . . . . . . . . . 1 . . . . Short Circuit 1 | . . . . . . . . . . . . . . . . . . . . . . . . 1 . . . . Overflow Damage 1609 | . . . 23 . 2 53 33 . 113 75 . . 55 278 327 . . 127 . 27 . 64 72 124 . . 66 170 Projectiles 1452 | . . . . . 2 53 33 . 113 64 . . 24 278 327 . . 120 . 27 . 64 72 124 . . 66 85 Explosions 157 | . . . 23 . . . . . . 11 . . 31 . . . . 7 . . . . . . . . . 85 Melee . | . . . . . . . . . . . . . . . . . . . . . . . . . . . . . Knockbacks 124 | . . . . . . 10 . . 27 4 . . 3 16 1 . 6 10 1 2 7 2 . . . . 3 32 Impact . | . . . . . . . . . . . . . . . . . . . . . . . . . . . . . Kinetic 120 | . . . . . . 10 . . 26 4 . . 3 15 1 . 6 9 1 2 6 2 . . . . 3 32 Secondary 4 | . . . . . . . . . 1 . . . . 1 . . . 1 . . 1 . . . . . . . Self-Inflicted Damage 240 | . . . 48 . . . . . . . . . . . . . . . . . . . . . . . . 192 Shots 5 | . . . 2 . . . . . . . . . . . . . . . . . . . . . . . . 3 Rammed 1 | . . . . . . . . . . . . . . . . . . . . . 1 . . . . . . . Targets Rammed 1 | . . . . . . . . . . . . . . . . . . . . . 1 . . . . . . . Kicked . | . . . . . . . . . . . . . . . . . . . . . . . . . . . . . Crushed . | . . . . . . . . . . . . . . . . . . . . . . . . . . . . . Highest Temperature 340 | . 32 72 36 252 213 333 38 . 280 264 . . . 324 305 264 261 243 181 . 292 297 103 340 198 201 163 198 Average Temperature 85 | . 8 25 12 104 78 82 15 . 97 123 . . . 123 84 106 42 44 93 . 64 75 35 109 52 48 38 128 Received Heat Transfer 3053 | . 240 93 291 54 159 201 45 . 312 81 . . 171 192 . . 66 293 . . 90 27 81 87 9 . . 561 Effects 11 | . . . . . 1 1 . . . 3 . . . 1 1 1 1 . . . . . . 2 . . . . Energy Bleed 5 | . . . . . 1 1 . . . . . . . 1 1 . 1 . . . . . . . . . . . Interference 6 | . . . . . . . . . . 3 . . . . . 1 . . . . . . . 2 . . . . Siege Activations 8 | . . . . . . . . . . . . . . . . . . . 2 1 1 4 . . . . . . Total Turns 58 | . . . . . . . . . . . . . . . . . . . 27 2 5 24 . . . . . . Longest Duration 14 | . . . . . . . . . . . . . . . . . . . 14 2 5 10 . . . . . . Robots Corrupted 4 | . . . . . . . . . . . . . 2 . 1 . . 1 . . . . . . . . . . Combat Hostiles 3 | . . . . . . . . . . . . . 2 . . . . 1 . . . . . . . . . . Parts Fried 3 | . . . . . . . 1 . . . . . . 2 . . . . . . . . . . . . . . Impact Corruptions 3 | . . . . . . . . . . . . . . 2 1 . . . . . . . . . . . . . Robots Melted 2 | . 1 . . 1 . . . . . . . . . . . . . . . . . . . . . . . . Combat Hostiles . | . . . . . . . . . . . . . . . . . . . . . . . . . . . . . Parts Melted 35 | . 2 4 13 2 3 . . . . . . . . . . . . . . . . . . 8 1 . 2 . Heat Transferred 17599 | . 1436 1433 4033 555 830 500 . . . . . . 50 . . . . . . . 370 675 2072 3980 555 444 666 . Parts Sabotaged . | . . . . . . . . . . . . . . . . . . . . . . . . . . . . . Parts Stolen . | . . . . . . . . . . . . . . . . . . . . . . . . . . . . . Parts Stripped . | . . . . . . . . . . . . . . . . . . . . . . . . . . . . . Power Chain Reactions 2 | . . . . . . . . . . . . . 1 . . . . 1 . . . . . . . . . . Alert | -11 -10 -10 -9 -9 -9 -7 -7 -7 -6 -6 -6 -6 -5 -5 -5 -5 -4 -4 -4 -4 -4 -3 -3 -3 -2 -2 -1 -1 ------- Run | Yrd Mat Min Mat Sto Rec Fac Low Low Fac Low Low Dat Pro Fac Upp Upp Fac Ext Cet Arc Hub Res Qua Sec Res Tes Acc Com Peak Influence 2541 | . 168 155 443 389 285 146 . . 272 . . . . 415 . . 55 252 433 312 832 540 385 387 324 341 488 2541 Initial 419 | . . 50 . 186 151 100 . . . . . . . 394 . . . 11 140 93 109 419 143 142 136 151 88 265 Average 235 | . 63 65 212 338 87 67 . . 134 . . . . 218 . . 10 131 281 280 349 390 224 223 200 202 214 1306 Maximum Alert Level 5 | . . . 2 1 1 . . . 1 . . . . 2 . . . 1 2 1 3 2 1 1 1 1 2 5 Low Security (%) 58 | 100 100 100 49 4 81 100 . . 75 . . . . 57 . . 100 74 7 15 56 . 41 38 50 55 54 . Level 1 28 | . . . 37 95 18 . . . 24 . . . . 23 . . . 25 78 84 8 45 58 61 49 44 35 11 Level 2 7 | . . . 12 . . . . . . . . . . 19 . . . . 13 . 11 54 . . . . 10 19 Level 3 . | . . . . . . . . . . . . . . . . . . . . . 23 . . . . . . 6 Level 4 . | . . . . . . . . . . . . . . . . . . . . . . . . . . . . 11 Level 5 2 | . . . . . . . . . . . . . . . . . . . . . . . . . . . . 36 High Security 1 | . . . . . . . . . . . . . . . . . . . . . . . . . . . . 15 Max Security . | . . . . . . . . . . . . . . . . . . . . . . . . . . . . . Squads Dispatched 69 | . 5 . 2 . . 3 . . 5 . . . . 4 . . 4 2 . . 5 4 4 5 1 3 4 18 Investigation 8 | . 2 . . . . . . . . . . . . 1 . . . . . . 1 2 . . . . . 2 Extermination 24 | . . . . . . 2 . . 4 . . . . 2 . . 2 . . . 1 . 2 3 1 2 3 2 Reinforcement 25 | . 3 . 2 . . 1 . . 1 . . . . 1 . . 2 2 . . 2 2 2 2 . 1 1 3 Assault 11 | . . . . . . . . . . . . . . . . . . . . . . . . . . . . 11 Garrison 1 | . . . . . . . . . . . . . . . . . . . . . 1 . . . . . . . Intercept . | . . . . . . . . . . . . . . . . . . . . . . . . . . . . . Searches Triggered 1 | . . . . . . . . . . . . . . 1 . . . . . . . . . . . . . . Construction Impeded 3 | . . . . . . . . . . . . . . 1 . . . 1 . . 1 . . . . . . . Haulers Reinforced 2 | . . . . . . . . . . . . . . . . . 1 . . . . 1 . . . . . . Active Scanning Responses . | . . . . . . . . . . . . . . . . . . . . . . . . . . . . . Cargo Convoy Interrupts . | . . . . . . . . . . . . . . . . . . . . . . . . . . . . . Stealth | -11 -10 -10 -9 -9 -9 -7 -7 -7 -6 -6 -6 -6 -5 -5 -5 -5 -4 -4 -4 -4 -4 -3 -3 -3 -2 -2 -1 -1 --------- Run | Yrd Mat Min Mat Sto Rec Fac Low Low Fac Low Low Dat Pro Fac Upp Upp Fac Ext Cet Arc Hub Res Qua Sec Res Tes Acc Com Distress Signals 23 | . 2 1 4 . . . . . 1 . . . . . . . 1 2 2 . 1 1 . 1 1 . 1 5 Communications Jammed 115 | . . . . . . . . . . . . . . . . . 8 . . . . . 11 20 . 9 6 61 Distress Signals 99 | . . . . . . . . . . . . . . . . . . . . . . . 11 20 . 1 6 61 Times Spotted 486 | . 28 10 41 6 5 13 6 . 20 6 2 . 16 14 2 2 11 30 5 4 17 12 18 25 11 16 25 141 Peak Tracking Total 27 | . 3 3 5 4 4 4 3 . 6 3 1 . 6 5 3 1 6 4 5 1 6 2 4 4 5 8 4 27 Tactical Retreats 33 | . . 1 3 . . . . . 1 . 1 . . 1 1 . 3 . . . . . 2 . 1 1 . 18 Traps | -11 -10 -10 -9 -9 -9 -7 -7 -7 -6 -6 -6 -6 -5 -5 -5 -5 -4 -4 -4 -4 -4 -3 -3 -3 -2 -2 -1 -1 ------- Run | Yrd Mat Min Mat Sto Rec Fac Low Low Fac Low Low Dat Pro Fac Upp Upp Fac Ext Cet Arc Hub Res Qua Sec Res Tes Acc Com Traps Triggered 14 | . 2 . . . . . . . 2 . . . . 2 . . . 1 . . . 2 2 . . 1 2 . Indirectly . | . . . . . . . . . . . . . . . . . . . . . . . . . . . . . Trap Hack Attempts . | . . . . . . . . . . . . . . . . . . . . . . . . . . . . . Triggered . | . . . . . . . . . . . . . . . . . . . . . . . . . . . . . Disarmed . | . . . . . . . . . . . . . . . . . . . . . . . . . . . . . Reprogrammed . | . . . . . . . . . . . . . . . . . . . . . . . . . . . . . Reused . | . . . . . . . . . . . . . . . . . . . . . . . . . . . . . Traps Extracted . | . . . . . . . . . . . . . . . . . . . . . . . . . . . . . Installed . | . . . . . . . . . . . . . . . . . . . . . . . . . . . . . Triggered 3 | . . . . . . . . . . . 2 . . . 1 . . . . . . . . . . . . . Machines | -11 -10 -10 -9 -9 -9 -7 -7 -7 -6 -6 -6 -6 -5 -5 -5 -5 -4 -4 -4 -4 -4 -3 -3 -3 -2 -2 -1 -1 ---------- Run | Yrd Mat Min Mat Sto Rec Fac Low Low Fac Low Low Dat Pro Fac Upp Upp Fac Ext Cet Arc Hub Res Qua Sec Res Tes Acc Com Machines Disabled 46 | . . . 3 . . . . . 2 . . . . 3 1 . 1 3 1 2 3 1 1 12 1 4 . 8 Max in Single Turn 3 | . . . 2 . . . . . 1 . . . . 1 1 . 1 3 1 1 . 1 1 1 1 1 . 1 Garrison Access 5 | . . . . . . . . . 1 . . . . . . . . . . . . . 1 . . . 3 . Network Hub 1 | . . . . . . . . . . . . . . . . . . . . . 1 . . . . . . . Energy Cycler 1 | . . . . . . . . . . . . . . . . . . 1 . . . . . . . . . . Machines Repaired . | . . . . . . . . . . . . . . . . . . . . . . . . . . . . . Machines Dismantled 1 | . . . . . . . . . . . . . . . . . 1 . . . . . . . . . . . Machines Sabotaged 1 | . . . . . . . . . . . . . . . . . . . . . 1 . . . . . . . Overloaded Fab Kills . | . . . . . . . . . . . . . . . . . . . . . . . . . . . . . Hacking | -11 -10 -10 -9 -9 -9 -7 -7 -7 -6 -6 -6 -6 -5 -5 -5 -5 -4 -4 -4 -4 -4 -3 -3 -3 -2 -2 -1 -1 --------- Run | Yrd Mat Min Mat Sto Rec Fac Low Low Fac Low Low Dat Pro Fac Upp Upp Fac Ext Cet Arc Hub Res Qua Sec Res Tes Acc Com Machines Accessed 113 | . 8 . 10 2 9 4 . . 7 1 . 4 . 8 1 2 1 1 . . 5 4 8 7 5 10 12 4 Terminals 80 | . 6 . 10 1 6 3 . . 3 . . . . 6 . . 1 . . . 5 3 6 7 3 9 7 4 Fabricators 4 | . . . . . . . . . 2 . . . . 1 . . . . . . . . . . 1 . . . Repair Stations 1 | . 1 . . . . . . . . . . . . . . . . . . . . . . . . . . . Recycling Units 7 | . 1 . . 1 2 . . . 1 . . . . . . . . 1 . . . . . . . . 1 . Scanalyzers 1 | . . . . . . . . . . . . . . . . . . . . . . . 1 . . . . . Garrison Access 11 | . . . . . . 1 . . 1 . . . . 1 . . . . . . . 1 1 . 1 1 4 . Total Hacks 321 | . 23 . 34 4 26 15 . . 14 1 . 29 . 31 1 6 4 2 . . 10 9 20 12 13 30 27 10 Successful 164 | . 14 . 12 1 17 8 . . 6 1 . 29 . 13 1 6 2 . . . 5 2 11 7 . 15 11 3 Failed 157 | . 9 . 22 3 9 7 . . 8 . . . . 18 . . 2 2 . . 5 7 9 5 13 15 16 7 Catastrophic 31 | . 2 . 5 . . 1 . . 2 . . . . 2 . . 1 . . . 2 1 4 3 2 4 2 . Database Lockouts . | . . . . . . . . . . . . . . . . . . . . . . . . . . . . . Manual 180 | . 14 . 28 1 17 10 . . 10 . . . . 20 . . 4 . 1 . 10 3 14 6 7 14 16 5 Terminals 231 | . 19 . 34 1 17 13 . . 8 . . . . 28 . . 4 . . . 10 7 17 12 7 26 18 10 Fabricators 8 | . . . . . . . . . 4 . . . . 2 . . . . . . . . . . 2 . . . Repair Stations 3 | . 3 . . . . . . . . . . . . . . . . . . . . . . . . . . . Recycling Units 16 | . 1 . . 3 7 . . . 1 . . . . . . . . 2 . . . . . . . . 2 . Scanalyzers 1 | . . . . . . . . . . . . . . . . . . . . . . . 1 . . . . . Garrison Access 23 | . . . . . . 2 . . 1 . . . . 1 . . . . . . . 2 2 . 4 4 7 . Terminal Hacks 82 | . 5 . 4 1 4 4 . . 2 1 . 29 . 4 1 6 . . . . 1 1 4 5 . 8 1 1 Record 16 | . . . . . . . . . . . . 11 . . . 5 . . . . . . . . . . . . Part Schematic 13 | . . . . . 1 1 . . . . . 11 . . . . . . . . . . . . . . . . Robot Schematic 4 | . . . . . . . . . . . . 4 . . . . . . . . . . . . . . . . Robot Analysis 3 | . 1 . 2 . . . . . . . . . . . . . . . . . . . . . . . . . Prototype ID Bank 8 | . 1 . . . 1 . . . 1 . . 3 . . . . . . . . . . 1 . . 1 . . Open Door 8 | . . . . 1 . . . . . 1 . . . . 1 1 . . . . . . . 3 . 1 . . Level Access Points 1 | . . . . . . . . . . . . . . . . . . . . . 1 . . . . . . . Branch Access Points 5 | . . . . . . 1 . . 1 . . . . 1 . . . . . . . 1 . . . . 1 . Terminal Index 4 | . . . . . . 1 . . . . . . . 1 . . . . . . . . 1 . . 1 . . Fabricator Index 1 | . . . . . . . . . . . . . . 1 . . . . . . . . . . . . . . Alert Level 5 | . . . 1 . . 1 . . . . . . . . . . . . . . . . 1 1 . 1 . . Unreport Threat 3 | . . . 1 . . . . . . . . . . . . . . . . . . . . 1 . 1 . . Locate Traps 7 | . 3 . . . . . . . . . . . . 1 . . . . . . . . 1 . . 2 . . Zone Layout 1 | . . . . . . . . . . . . . . . . . . . . . . . . . . 1 . . Disengage Seal 1 | . . . . . . . . . . . . . . . . . . . . . . . . . . . . 1 Release Object 2 | . . . . . 2 . . . . . . . . . . . . . . . . . . . . . . . Fabricator Hacks 2 | . . . . . . . . . . . . . . 2 . . . . . . . . . . . . . . Load Schematic 1 | . . . . . . . . . . . . . . 1 . . . . . . . . . . . . . . Build 1 | . . . . . . . . . . . . . . 1 . . . . . . . . . . . . . . Repair Station Hacks . | . . . . . . . . . . . . . . . . . . . . . . . . . . . . . Recycling Unit Hacks 5 | . 1 . . . 2 . . . 1 . . . . . . . . . . . . . . . . . 1 . Retrieve Components 5 | . 1 . . . 2 . . . 1 . . . . . . . . . . . . . . . . . 1 . Scanalyzer . | . . . . . . . . . . . . . . . . . . . . . . . . . . . . . Garrison Access Hacks 5 | . . . . . . . . . 1 . . . . . . . . . . . . . 1 . . . 3 . Seal Access 5 | . . . . . . . . . 1 . . . . . . . . . . . . . 1 . . . 3 . Unauthorized Hacks 70 | . 8 . 8 . 11 4 . . 2 . . . . 7 . . 2 . . . 4 1 6 2 . 7 6 2 Terminals 66 | . 8 . 8 . 9 4 . . 1 . . . . 7 . . 2 . . . 4 1 5 2 . 7 6 2 Botnet 26 | . 2 . 1 . 3 1 . . 1 . . . . 3 . . 1 . . . 3 1 2 2 . 3 2 1 Operators 1 | . . . . . . . . . . . . . . . . . . . . . . . 1 . . . . . Skim 38 | . 6 . 7 . 6 3 . . . . . . . 4 . . 1 . . . . . 2 . . 4 4 1 Sabotage 1 | . . . . . . . . . . . . . . . . . . . . . 1 . . . . . . . Fabricators 1 | . . . . . . . . . 1 . . . . . . . . . . . . . . . . . . . Fabnet 1 | . . . . . . . . . 1 . . . . . . . . . . . . . . . . . . . Repair Stations . | . . . . . . . . . . . . . . . . . . . . . . . . . . . . . Recycling Units 2 | . . . . . 2 . . . . . . . . . . . . . . . . . . . . . . . Tunnel 2 | . . . . . 2 . . . . . . . . . . . . . . . . . . . . . . . Scanalyzers 1 | . . . . . . . . . . . . . . . . . . . . . . . 1 . . . . . Researchers 1 | . . . . . . . . . . . . . . . . . . . . . . . 1 . . . . . Garrison Access . | . . . . . . . . . . . . . . . . . . . . . . . . . . . . . Data Cores Recovered 3 | . . . 2 . . . . . . . . . . . . . . . . . 1 . . . . . . . Used 2 | . . . 2 . . . . . . . . . . . . . . . . . . . . . . . . . Hacking Detections 87 | . 7 . 10 1 7 4 . . 5 . . . . 8 . . 1 1 . . 2 4 5 4 5 9 10 4 Full Trace Events 3 | . . . . 1 . . . . . . . . . 1 . . . . . . . . . . . . . 1 Feedback Events 1 | . . . . 1 . . . . . . . . . . . . . . . . . . . . . . . . Corruption 1 | . . . . 1 . . . . . . . . . . . . . . . . . . . . . . . . Feedback Blocked . | . . . . . . . . . . . . . . . . . . . . . . . . . . . . . Robot Schematics Acquired 6 | . . . . . . . . . . . . 4 . . . . . . . . . . . . . 2 . . Robots Built . | . . . . . . . . . . . . . . . . . . . . . . . . . . . . . Authchips . | . . . . . . . . . . . . . . . . . . . . . . . . . . . . . Time . | . . . . . . . . . . . . . . . . . . . . . . . . . . . . . Total Robot Build Rating . | . . . . . . . . . . . . . . . . . . . . . . . . . . . . . Part Schematics Acquired 15 | . . . . . 1 1 . . . . . 11 . . . . . . . . . . . . . 2 . . Parts Built 1 | . . . . . . . . . . . . . . 1 . . . . . . . . . . . . . . Authchips . | . . . . . . . . . . . . . . . . . . . . . . . . . . . . . Time 76 | . . . . . . . . . . . . . . 76 . . . . . . . . . . . . . . Total Part Build Rating 5 | . . . . . . . . . . . . . . 5 . . . . . . . . . . . . . . Parts Repaired . | . . . . . . . . . . . . . . . . . . . . . . . . . . . . . Time . | . . . . . . . . . . . . . . . . . . . . . . . . . . . . . Parts Recycled . | . . . . . . . . . . . . . . . . . . . . . . . . . . . . . Recycled Matter . | . . . . . . . . . . . . . . . . . . . . . . . . . . . . . Retrieved Matter . | . . . . . . . . . . . . . . . . . . . . . . . . . . . . . Retrieved Components 20 | . . . . . 11 . . . 7 . . . . . . . . . . . . . . . . . 2 . Parts Scanalyzed . | . . . . . . . . . . . . . . . . . . . . . . . . . . . . . Part Schematics Acquired . | . . . . . . . . . . . . . . . . . . . . . . . . . . . . . Parts Damaged . | . . . . . . . . . . . . . . . . . . . . . . . . . . . . . Bothacking | -11 -10 -10 -9 -9 -9 -7 -7 -7 -6 -6 -6 -6 -5 -5 -5 -5 -4 -4 -4 -4 -4 -3 -3 -3 -2 -2 -1 -1 ------------ Run | Yrd Mat Min Mat Sto Rec Fac Low Low Fac Low Low Dat Pro Fac Upp Upp Fac Ext Cet Arc Hub Res Qua Sec Res Tes Acc Com Used RIF Installer . | . . . . . . . . . . . . . . . . . . . . . . . . . . . . . Robots Hacked 2 | . . . . . . . . . . . . . . . . . 1 1 . . . . . . . . . . Non-combat . | . . . . . . . . . . . . . . . . . . . . . . . . . . . . . Combat 2 | . . . . . . . . . . . . . . . . . 1 1 . . . . . . . . . . Robot Hacks Applied . | . . . . . . . . . . . . . . . . . . . . . . . . . . . . . Relay Couplers Released 4 | . . . . . . . . . . . . . . . . . . . . . . . . . . . 4 . Programmers 4 | . . . . . . . . . . . . . . . . . . . . . . . . . . . 4 . Fabnet Peak Effective % 3 | . . . . . . . . . . . . . 3 3 3 3 1 1 1 1 1 . . . . . . . Autooverrided 2 | . . . . . . . . . . . . . . . . . 1 1 . . . . . . . . . . Robots Rewired 25 | . . . . . . . . . . . . . . . . . 3 22 . . . . . . . . . . Allies Hacked . | . . . . . . . . . . . . . . . . . . . . . . . . . . . . . Hacks Repelled . | . . . . . . . . . . . . . . . . . . . . . . . . . . . . . Allies | -11 -10 -10 -9 -9 -9 -7 -7 -7 -6 -6 -6 -6 -5 -5 -5 -5 -4 -4 -4 -4 -4 -3 -3 -3 -2 -2 -1 -1 -------- Run | Yrd Mat Min Mat Sto Rec Fac Low Low Fac Low Low Dat Pro Fac Upp Upp Fac Ext Cet Arc Hub Res Qua Sec Res Tes Acc Com Total Allies 73 | . . 5 . . . . . . . . . . . . . . 4 26 5 . . . . . . . . 33 Largest Group 13 | . . 4 4 . . . . . . . . . . . . . 3 8 9 7 5 . . . . . . 13 Highest-Rated Group 812 | . . 54 54 . . . . . . . . . . . . . 106 350 760 606 425 . . . . . . 812 Highest-Rated Ally 234 | . . 31 16 . . . . . . . . . . . . . 54 159 159 152 96 . . . . . . 234 Total Orders 13 | . . . . . . . . . . . . . 2 . . . . 4 . . 6 . . . . . . 1 STAY 5 | . . . . . . . . . . . . . . . . . . 2 . . 3 . . . . . . . FOLLOW 5 | . . . . . . . . . . . . . . . . . . 2 . . 3 . . . . . . . EXPLORE 1 | . . . . . . . . . . . . . . . . . . . . . . . . . . . . 1 RETURN 2 | . . . . . . . . . . . . . 2 . . . . . . . . . . . . . . . Ally Attacks 468 | . . 3 28 . . . . . . . . . . . . . 6 111 45 22 74 . . . . . . 179 Total Damage 15266 | . . 43 356 . . . . . . . . . . . . . 91 2887 1925 828 2611 . . . . . . 6525 Kills 83 | . . . 5 . . . . . . . . . . . . . . 18 8 4 17 . . . . . . 31 Allies Corrupted 4 | . . . . . . . . . . . . . . . . . . . . . . . . . . . . 4 Allies Melted 2 | . . . . . . . . . . . . . . . . . . 1 . . 1 . . . . . . . Intel | -11 -10 -10 -9 -9 -9 -7 -7 -7 -6 -6 -6 -6 -5 -5 -5 -5 -4 -4 -4 -4 -4 -3 -3 -3 -2 -2 -1 -1 ------- Run | Yrd Mat Min Mat Sto Rec Fac Low Low Fac Low Low Dat Pro Fac Upp Upp Fac Ext Cet Arc Hub Res Qua Sec Res Tes Acc Com Robot Analysis Total 3 | . 1 . 2 . . . . . . . . . . . . . . . . . . . . . . . . . Derelict Logs Recovered 10 | . . 2 . . . . 1 . . 2 1 . 1 . 1 2 . . . . . . . . . . . . Drone Launches 9 | . . . . . . . . . . . . . 6 . . . . . . . . . . . . . . 3 Drone Recoveries 6 | . . . . . . . . . . . . . 6 . . . . . . . . . . . . . . . Exploration | -11 -10 -10 -9 -9 -9 -7 -7 -7 -6 -6 -6 -6 -5 -5 -5 -5 -4 -4 -4 -4 -4 -3 -3 -3 -2 -2 -1 -1 ------------- Run | Yrd Mat Min Mat Sto Rec Fac Low Low Fac Low Low Dat Pro Fac Upp Upp Fac Ext Cet Arc Hub Res Qua Sec Res Tes Acc Com Turns Passed 28244 | 58 1460 1005 1867 177 1417 1177 441 173 1242 461 190 80 545 1297 703 2271 1366 2210 455 192 520 1225 1284 1734 674 788 1690 1542 Spaces Moved 18765 | 32 702 560 900 101 700 451 332 143 1066 366 177 81 409 552 451 1072 582 1144 220 62 338 767 1348 1502 643 813 1879 1372 Core 5 | 5 . . . . . . . . . . . . . . . . . . . . . . . . . . . . Treads 6509 | 27 702 560 474 . 288 147 . . 503 366 177 81 409 2 . 608 582 480 220 62 338 483 . . . . . . Legs 2752 | . . . . . 325 170 . . . . . . . 550 451 464 . 664 . . . 128 . . . . . . Wheels 614 | . . . 426 101 87 . . . . . . . . . . . . . . . . . . . . . . . Hover 1172 | . . . . . . 134 332 143 563 . . . . . . . . . . . . . . . . . . . Flight 7683 | . . . . . . . . . . . . . . . . . . . . . . 156 1348 1498 639 811 1877 1354 Fastest Speed 45 | 50 160 160 125 130 130 120 120 120 82 92 92 92 92 92 128 128 128 104 104 104 104 66 66 66 66 66 45 45 Average Speed 108 | 144 160 160 149 130 175 218 120 120 87 95 92 92 92 173 132 200 134 132 104 104 104 116 66 66 66 66 61 48 Slowest Speed 269 | 160 160 160 240 130 240 269 120 120 158 168 92 92 92 177 177 204 204 230 104 104 104 177 66 130 66 66 66 66 Overloaded Moves . | . . . . . . . . . . . . . . . . . . . . . . . . . . . . . Propulsion Burnouts . | . . . . . . . . . . . . . . . . . . . . . . . . . . . . . Robots Hopped 62 | . . . . . . . . . . . . . . . . . . . . . . . 12 4 11 5 12 18 Cave-ins Triggered . | . . . . . . . . . . . . . . . . . . . . . . . . . . . . . Spacefolds 9 | . . . . . . . . . . . . . . . . . . . . . . . . 1 1 1 1 5 Exploration Rate (%) 54 | 3 99 97 81 23 99 11 56 14 23 46 47 74 77 16 59 98 12 83 66 72 29 24 94 63 18 92 49 61 Regions Visited 28 Branch Regions 19 Pre-discovered Areas 6 | . 1 . 1 . 2 . . . . . . 1 1 . . . . . . . . . . . . . . . Known Exits Taken 21 | . . 1 1 1 1 1 1 . 1 . . . . 1 1 1 1 1 1 1 1 1 1 1 1 1 1 . Unknown Exits Taken 7 | 1 1 . . . . . . 1 . 1 1 1 1 . . . . . . . . . . . . . . . Scrap Searched 14 | . . 1 . . . . . 1 . 2 1 . 2 . 3 4 . . . . . . . . . . . . Spaces Dug 216 | . . . 3 . . 2 2 . 3 3 . . 27 38 4 . 16 5 . 1 4 8 16 18 16 9 30 11 Terrain Destroyed 922 | . . . 46 . . 13 8 . 18 105 1 . 126 66 41 23 23 90 5 7 14 23 51 59 30 15 52 106 Melee 3 | . . . 3 . . . . . . . . . . . . . . . . . . . . . . . . . Projectile 544 | . . . . . . 10 8 . 18 11 1 . 23 48 5 1 23 53 5 7 14 23 51 55 30 15 51 92 AOE 372 | . . . 43 . . 3 . . . 94 . . 103 18 36 22 . 37 . . . . . 4 . . . 12 Terrain Rammed . | . . . . . . . . . . . . . . . . . . . . . . . . . . . . . Walls Destroyed . | . . . . . . . . . . . . . . . . . . . . . . . . . . . . . Machines Disabled . | . . . . . . . . . . . . . . . . . . . . . . . . . . . . . Actions | -11 -10 -10 -9 -9 -9 -7 -7 -7 -6 -6 -6 -6 -5 -5 -5 -5 -4 -4 -4 -4 -4 -3 -3 -3 -2 -2 -1 -1 --------- Run | Yrd Mat Min Mat Sto Rec Fac Low Low Fac Low Low Dat Pro Fac Upp Upp Fac Ext Cet Arc Hub Res Qua Sec Res Tes Acc Com Total 24600 | 41 945 623 1280 126 865 593 355 144 1278 436 202 83 538 815 539 1186 1057 1719 439 177 468 1055 1606 2008 835 1020 2305 1862 Wait 3337 | . 130 24 195 11 120 71 4 2 104 35 25 . 85 191 59 91 336 259 166 101 100 198 112 225 122 116 248 207 Move 18599 | 31 701 559 899 100 699 450 331 142 1065 365 176 80 408 551 450 1071 581 1143 219 61 338 766 1323 1490 618 801 1853 1328 Hop 55 | . . . . . . . . . . . . . . . . . . . . . . . 12 4 10 5 12 12 Pick Up 218 | 4 20 3 22 . 6 14 . . 10 1 . . 2 4 2 4 7 14 8 . . 16 14 20 7 14 12 14 Fast Attach 190 | 6 3 1 7 . 2 2 . . 8 1 . . 2 3 5 2 1 7 9 2 . 4 12 39 9 10 33 22 Attach 56 | . 1 . 5 . 2 3 . . 2 . . . . 3 1 1 2 4 1 . . 3 1 6 2 . 5 14 Detach 14 | . 1 . . . 4 . . . 1 . . . . . 1 . . 1 . . . . . . 2 . 1 3 Swap 302 | . 11 3 27 2 1 7 2 . 11 8 . 2 8 12 2 3 11 26 6 2 11 11 26 39 8 13 22 28 Drop 413 | . 19 7 43 2 13 16 . . 18 2 . . 4 5 5 8 10 25 20 3 . 22 26 48 15 26 41 35 Fire 1206 | . 59 26 79 11 18 30 18 . 59 24 1 . 29 46 14 6 80 68 10 8 19 35 79 137 42 35 74 199 Melee 3 | . . . 3 . . . . . . . . . . . . . . . . . . . . . . . . . Ram . | . . . . . . . . . . . . . . . . . . . . . . . . . . . . . Kick . | . . . . . . . . . . . . . . . . . . . . . . . . . . . . . Crush . | . . . . . . . . . . . . . . . . . . . . . . . . . . . . . Escape Stasis 5 | . . . . . . . . . . . . . . . . . . . . . . . 1 . . . 4 . Rewire 186 | . . . . . . . . . . . . . . . . . 14 172 . . . . . . . . . . Trap . | . . . . . . . . . . . . . . . . . . . . . . . . . . . . . Miscellaneous 16 | . . . . . . . . . . . . 1 . . . . 15 . . . . . . . . . . . Route ------- -11/Scrapyard -10/Materials (discovered 5 exits: *Mat x3 / [*Min] / Sub) -10/Mines (discovered 3 exits: *Mat x2 / [*Exi]) -9/Materials (discovered 6 exits: *Mat x3 / *Min x2 / *Sto) -9/Storage (discovered 2 exits: Mat / *Rec) -9/Recycling -7/Factory (discovered 2 exits: *Low x2) -7/Lower Caves -7/Lower Caves -6/Factory (discovered 2 exits: *Low x2) -6/Lower Caves -6/Lower Caves -6/Data Miner -5/Proximity Caves -5/Factory (discovered 5 exits: Fac x3 / *Upp x2) -5/Upper Caves -5/Upper Caves (discovered 2 exits: *Fac / *War) -4/Factory (discovered 3 exits: *Res x2 / *Ext) -4/Extension (discovered 2 exits: *Res / *Cet) -4/Cetus (discovered 2 exits: *Res / *Arc) -4/Archives -4/Hub_04(d) (discovered 4 exits: *Res x4) -3/Research (discovered 2 exits: *Qua x2) -3/Quarantine (discovered 2 exits: *Res / *Sec) -3/Section 7 -2/Research -2/Testing -1/Access -1/Command To Fleet Rendezvous History --------- Turn | Location | Event 22 | -11/Scrapyard | Discovered new exit (range 16) 59 | -11/Scrapyard | Entered Materials 353 | -10/Materials | Build established: Mutant 472 | -10/Materials | Discovered new exit (range 12) 754 | -10/Materials | Discovered new exit (range 6) 873 | -10/Materials | Discovered new exit (range 12) 995 | -10/Materials | Discovered new exit (range 16) 1113 | -10/Materials | Learned location of 1 exit from Recycling 1216 | -10/Materials | Learned location of Mines (-10) 1280 | -10/Materials | Learned location of 1 exit from Storage 1298 | -10/Materials | Learned location of 1 exit from Recycling 1308 | -10/Materials | Identified exit to Subcaves 1308 | -10/Materials | Learned location of 2 exits from Materials 1328 | -10/Materials | Learned 4 Materials zone layouts 1354 | -10/Materials | Build established: Scavenger-Mutant 1358 | -10/Materials | Learned location of 1 exit from Storage 1398 | -10/Materials | Loaded intel: 5 trap records 1519 | -10/Materials | Entered Mines 1608 | -10/Mines | Found DCF Scrap (13 items) 1621 | -10/Mines | Core integrity fell below 50% 1699 | -10/Mines | Identified exit to Materials 1826 | -10/Mines | Assembled infested the area 1831 | -10/Mines | Assisted by a Guerilla fighting off Assembled 1935 | -10/Mines | Learned Materials interactive machine intel 1952 | -10/Mines | Found a hidden stash of uninstalled traps 1970 | -10/Mines | Build established: Mutant 2267 | -10/Mines | Discovered exit to Materials (range 7) 2328 | -10/Mines | Assisted by bots powering up and referring to "LRC-V3" 2394 | -10/Mines | Deemed a non-threat by the Exiles lab entrance 2394 | -10/Mines | Discovered new exit (range 5) 2524 | -10/Mines | Entered Materials 2524 | -9/Materials | Accompanied by 4 allies 2524 | -9/Materials | Evolved 2 slots: Utility x2 2525 | -9/Materials | Identified exit to Storage 2526 | -9/Materials | Identified exit to Mines 2526 | -9/Materials | Identified exit to Materials 2528 | -9/Materials | Loaded intel: 18 interactive machine locations 2877 | -9/Materials | Build established: Scavenger-Mutant 3183 | -9/Materials | Lost 3 allies 3390 | -9/Materials | Discovered exit to Materials (range 3) 3705 | -9/Materials | Discovered exit to Mines (range 10) 3967 | -9/Materials | Build established: Mutant 4094 | -9/Materials | Learned Storage trap positions 4170 | -9/Materials | Destroyed 10 combat bots 4184 | -9/Materials | Learned location of Zion (-7) 4215 | -9/Materials | Learned 4 Recycling zone layouts 4391 | -9/Materials | Entered Storage 4392 | -9/Storage | Identified exit to Recycling 4393 | -9/Storage | Loaded intel: 17 trap records 4407 | -9/Storage | Build established: Scavenger-Mutant 4563 | -9/Storage | Used back door to open Recycling access 4568 | -9/Storage | Entered Recycling 4569 | -9/Recycling | Identified exit to Scraptown 4569 | -9/Recycling | Identified exit to Factory 4914 | -9/Recycling | Learned Materials stockpile data 4955 | -9/Recycling | Learned Storage terminal intel 4987 | -9/Recycling | Learned Materials non-interactive machine intel 5011 | -9/Recycling | Learned location of 1 exit from Recycling 5026 | -9/Recycling | Learned 2 Materials zone layouts 5033 | -9/Recycling | Learned location of 1 exit from Storage 5049 | -9/Recycling | Learned Materials emergency access door positions 5056 | -9/Recycling | Scanned before Scraplab entrance 5073 | -9/Recycling | Learned 4 Recycling zone layouts 5094 | -9/Recycling | Angered Scraplab inhabitants 5109 | -9/Recycling | Learned 2 Materials zone layouts 5161 | -9/Recycling | Found Prototype Device 5161 | -9/Recycling | Identified Scrap Engine 5570 | -9/Recycling | Build established: Construct 5985 | -9/Recycling | Entered Factory 5985 | -7/Factory | Evolved 4 slots: Propulsion x1, Utility x2, Weapon x1 6930 | -7/Factory | Discovered new exit (range 10) 6985 | -7/Factory | Identified exit to Lower Caves 7162 | -7/Factory | Entered Lower Caves 7211 | -7/Lower Caves | Identified exit to Lower Caves 7603 | -7/Lower Caves | Ambushed by research squad 7603 | -7/Lower Caves | Entered another Lower Caves area 7727 | -7/Lower Caves | Discovered new exit (range 5) 7776 | -7/Lower Caves | Entered Factory 7776 | -6/Factory | Evolved 2 slots: Utility x2 7861 | -6/Factory | Spotted B-75 Beast 8638 | -6/Factory | Identified exit to Lower Caves 9018 | -6/Factory | Entered Lower Caves 9156 | -6/Lower Caves | Learned Factory non-interactive machine intel 9410 | -6/Lower Caves | Learned 8 Factory zone layouts 9451 | -6/Lower Caves | Discovered new exit (range 11) 9479 | -6/Lower Caves | Entered another Lower Caves area 9485 | -6/Lower Caves | Learned Factory non-interactive machine intel 9657 | -6/Lower Caves | Discovered new exit (range 14) 9669 | -6/Lower Caves | Entered Data Miner 9671 | -6/Data Miner | Discovered new exit (range 6) 9683 | -6/Data Miner | Met Data Miner 9708 | -6/Data Miner | Acquired the access code to Warlord's prototype stash 9708 | -6/Data Miner | Learned location of Section 7 (-3) 9723 | -6/Data Miner | Received God Mode back door access code from Data Miner 9749 | -6/Data Miner | Entered Proximity Caves 9938 | -5/Proximity Caves | Spotter reported a threat 9946 | -5/Proximity Caves | Spotter reported a threat 10081 | -5/Proximity Caves | Spotted B-75 Beast 10275 | -5/Proximity Caves | Discovered new exit (range 13) 10294 | -5/Proximity Caves | Entered Factory 10294 | -5/Factory | Evolved 2 slots: Power x1, Propulsion x1 10295 | -5/Factory | Identified exit to Factory 10296 | -5/Factory | Loaded intel: 181 non-interactive machine locations 10412 | -5/Factory | Identified exit to Upper Caves 10590 | -5/Factory | Build established: Skirmisher 10594 | -5/Factory | Search patrols dispatched 10792 | -5/Factory | Found Mni. Smartbomb Launcher 11327 | -5/Factory | Fabricated Lgt. Regenerative Plating? 11591 | -5/Factory | Entered Upper Caves 11696 | -5/Upper Caves | Attracted the attention of an 0b10 outpost 11986 | -5/Upper Caves | Learned Factory terminal intel 11990 | -5/Upper Caves | Found Alien Artifact 11990 | -5/Upper Caves | Identified Core Expander 11990 | -5/Upper Caves | Installed Core Expander, added new Propulsion slot 12195 | -5/Upper Caves | Discovered new exit (range 12) 12291 | -5/Upper Caves | Identified exit to Upper Caves 12294 | -5/Upper Caves | Entered another Upper Caves area 12296 | -5/Upper Caves | Attracted the attention of an 0b10 checkpoint 12372 | -5/Upper Caves | Learned Extension stockpile data 12372 | -5/Upper Caves | Learned Extension security intel 12372 | -5/Upper Caves | Learned location of 1 exit from Factory 12676 | -5/Upper Caves | Discovered new exit (range 11) 12693 | -5/Upper Caves | Identified exit to Warlord 13808 | -5/Upper Caves | Learned Factory emergency access door positions 14565 | -5/Upper Caves | Entered Factory 14565 | -4/Factory | Evolved 2 slots: Utility x2 14566 | -4/Factory | Identified exit to Research 14568 | -4/Factory | Loaded intel: 246 non-interactive machine locations 14569 | -4/Factory | Loaded intel: 28 terminal locations 14841 | -4/Factory | Lost 3 allies 14883 | -4/Factory | Discovered exit to Research (range 14) 14884 | -4/Factory | Build established: Gunner 15191 | -4/Factory | Local machine network offline 15925 | -4/Factory | Discovered new exit (range 6) 15930 | -4/Factory | Identified exit to Extension 15931 | -4/Factory | Entered Extension 15999 | -4/Extension | Rescued a captive Derelict 16219 | -4/Extension | Local machine network offline 16477 | -4/Extension | Lost 7 allies 16758 | -4/Extension | Rescued a captive Derelict 17196 | -4/Extension | Spotted B-86 Titan 17221 | -4/Extension | Destroyed B-86 Titan 17226 | -4/Extension | Build established: Commander-Gunner 17246 | -4/Extension | Spotted B-86 Titan 17268 | -4/Extension | Allies destroyed B-86 Titan 17288 | -4/Extension | Lost 4 allies 17946 | -4/Extension | Energy Cycler disabled 17947 | -4/Extension | Rescued a captive Derelict 17984 | -4/Extension | Rescued A7 17986 | -4/Extension | Build established: Commander-Skirmisher 18092 | -4/Extension | Discovered exit to Research (range 10) 18093 | -4/Extension | Discovered new exit (range 6) 18100 | -4/Extension | Identified exit to Cetus 18141 | -4/Extension | Entered Cetus 18141 | -4/Cetus | Accompanied by 5 allies (A7) 18146 | -4/Cetus | Acquired a Cetus Manufacturing Module code from A7 18166 | -4/Cetus | Spotted Cetus Guard 18166 | -4/Cetus | Spotted Cetus Guard 18167 | -4/Cetus | Spotted Cetus Guard 18173 | -4/Cetus | Destroyed Cetus Guard 18185 | -4/Cetus | Allies destroyed Cetus Guard 18193 | -4/Cetus | Allies destroyed Cetus Guard 18290 | -4/Cetus | Started Cetus Manufacturing Module 18302 | -4/Cetus | Escorted A7 to Cetus Mainframe 18315 | -4/Cetus | Manufactured an Enhanced Grunt 18340 | -4/Cetus | Manufactured an Enhanced Grunt 18365 | -4/Cetus | Manufactured an Enhanced Grunt 18390 | -4/Cetus | Manufactured an Enhanced Grunt 18415 | -4/Cetus | Manufactured an Enhanced Grunt 18433 | -4/Cetus | Discovered new exit (range 16) 18453 | -4/Cetus | Spotted Cetus Guard 18459 | -4/Cetus | Spotted Cetus Guard 18465 | -4/Cetus | Destroyed Cetus Guard 18470 | -4/Cetus | Allies destroyed Cetus Guard 18479 | -4/Cetus | Found Prototype Device 18479 | -4/Cetus | Identified Exp. Thermal Shield 18503 | -4/Cetus | Discovered exit to Research (range 15) 18508 | -4/Cetus | Met Revision 17 18567 | -4/Cetus | Identified exit to Archives 18596 | -4/Cetus | Entered Archives 18596 | -4/Archives | Accompanied by 7 allies (A7) 18601 | -4/Archives | Received a hacking code to weaken MAIN.C 18751 | -4/Archives | Discovered new exit (range 16) 18773 | -4/Archives | Identified exit to Hub_04(d) 18788 | -4/Archives | Entered Hub_04(d) 18788 | -4/Hub_04(d) | Accompanied by 5 allies 19075 | -4/Hub_04(d) | Build established: Scavenger-Skirmisher 19135 | -4/Hub_04(d) | Garrison activated, responded to threat 19225 | -4/Hub_04(d) | Lost 4 allies 19294 | -4/Hub_04(d) | Network Hub disabled 19305 | -4/Hub_04(d) | Spotted Lightning 19306 | -4/Hub_04(d) | Spotted Lightning 19306 | -4/Hub_04(d) | Spotted Lightning 19308 | -4/Hub_04(d) | Entered Research 19308 | -3/Research | Evolved 2 slots: Utility x2 19508 | -3/Research | Revision forces began assault on 0b10 19639 | -3/Research | Met up with Revision 17++ 19826 | -3/Research | Lost 3 allies 19853 | -3/Research | Identified exit to Quarantine 19911 | -3/Research | Found Prototype Processor 19959 | -3/Research | Identified Exp. Melee Analysis Suite 20008 | -3/Research | Research terminal network offline 20533 | -3/Research | Entered Quarantine 20666 | -3/Quarantine | Found Adv. Powered Armor 20851 | -3/Quarantine | Found Prototype Device 20856 | -3/Quarantine | Identified Exp. Thermal Defense Suite 20985 | -3/Quarantine | Build established: Scout 21351 | -3/Quarantine | Found Prototype Processor 21353 | -3/Quarantine | Identified Spectral Analyzer 21414 | -3/Quarantine | Found Alien Artifact 21536 | -3/Quarantine | Discovered new exit (range 9) 21548 | -3/Quarantine | Found Alien Artifact 21548 | -3/Quarantine | Identified Core Reset Matrix 21548 | -3/Quarantine | Identified Subatomic Replicator 21548 | -3/Quarantine | Used Core Reset Matrix 21552 | -3/Quarantine | Detected hypermatrix surge 21552 | -3/Quarantine | Sensed 11 artifacts in vicinity 21561 | -3/Quarantine | Discovered new exit (range 3) 21565 | -3/Quarantine | Identified exit to Research 21763 | -3/Quarantine | Spotted Fortress 21808 | -3/Quarantine | Discovered new exit (range 6) 21811 | -3/Quarantine | Identified exit to Section 7 21817 | -3/Quarantine | Entered Section 7 21818 | -3/Section 7 | Sensed 23 artifacts in vicinity 21844 | -3/Section 7 | Found Spacefold Activator 21872 | -3/Section 7 | Spotted S7 Guard 22131 | -3/Section 7 | Destroyed S7 Guard 22175 | -3/Section 7 | Discovered exit to Research (range 22) 22190 | -3/Section 7 | Spotted S7 Guard 22214 | -3/Section 7 | Found Integrated Thermoelectric Network 22222 | -3/Section 7 | Installed Integrated Thermoelectric Network, gained heat-energy exchange potential 22286 | -3/Section 7 | Destroyed S7 Guard 22643 | -3/Section 7 | System corruption reached 10% 22700 | -3/Section 7 | Spotted Executioner 22709 | -3/Section 7 | Spotted Executioner 22759 | -3/Section 7 | Found Transdimensional Reconstructor 22796 | -3/Section 7 | Spotted B-99 Colossus 22831 | -3/Section 7 | Found Integrated Reactor 22831 | -3/Section 7 | Installed Integrated Reactor, increased core energy generation (+10) 22833 | -3/Section 7 | Found Integrated Reactor 22833 | -3/Section 7 | Installed Integrated Reactor, increased core energy generation (+10) 22835 | -3/Section 7 | Found Integrated Reactor 22835 | -3/Section 7 | Installed Integrated Reactor, increased core energy generation (+10) 22862 | -3/Section 7 | Found LRC Storage 22862 | -3/Section 7 | Installed LRC Storage, increased inventory capacity (+2) 22864 | -3/Section 7 | Found LRC Insulator 22864 | -3/Section 7 | Installed LRC Insulator, gained EM resistance (25) 22894 | -3/Section 7 | Found Integrity Redistributor 22944 | -3/Section 7 | Build established: Alien-Scout 23044 | -3/Section 7 | Spotted Executioner 23048 | -3/Section 7 | Spotted Executioner 23089 | -3/Section 7 | Destroyed Executioner 23095 | -3/Section 7 | Found Prototype Processor 23095 | -3/Section 7 | Identified Exp. Core Analyzer 23121 | -3/Section 7 | Destroyed Executioner 23144 | -3/Section 7 | Spotted Striker 23188 | -3/Section 7 | Found Transdimensional Reconstructor 23255 | -3/Section 7 | Destroyed Executioner 23264 | -3/Section 7 | Destroyed Executioner 23283 | -3/Section 7 | Found Exp. Core Analyzer 23293 | -3/Section 7 | Found Prototype Processor 23296 | -3/Section 7 | Identified Exp. Targeting Computer 23304 | -3/Section 7 | Found Prototype Device 23304 | -3/Section 7 | Identified Adv. Kinecellerator 23316 | -3/Section 7 | Found Exp. Core Analyzer 23551 | -3/Section 7 | Entered Research 23551 | -2/Research | Evolved 2 slots: Utility x2 23898 | -2/Research | Spotted B-90 Cyclops 23986 | -2/Research | Spotted B-90 Cyclops 24222 | -2/Research | Discovered new exit (range 4) 24224 | -2/Research | Identified exit to Testing 24225 | -2/Research | Entered Testing 24355 | -2/Testing | Found Prototype Protection 24356 | -2/Testing | Identified Centrium Heavy Armor Plating 24428 | -2/Testing | Spotted Striker 24431 | -2/Testing | Spotted Striker 24525 | -2/Testing | Found Lgt. Regenerative Plating 24529 | -2/Testing | Found Prototype Protection 24529 | -2/Testing | Identified SHELL Armor 24561 | -2/Testing | Found Prototype Ballistic Gun 24561 | -2/Testing | Identified Hyp. Multirail 24580 | -2/Testing | Found Prototype Processor 24601 | -2/Testing | Identified Exp. Signal Interpreter 24653 | -2/Testing | Found Prototype Device 24671 | -2/Testing | Identified Exp. Actuator Array 25011 | -2/Testing | Discovered new exit (range 3) 25012 | -2/Testing | Identified exit to Access 25013 | -2/Testing | Entered Access 25013 | -1/Access | Evolved 2 slots: Propulsion x1, Weapon x1 25220 | -1/Access | Found Prototype Processor 25232 | -1/Access | Identified Spectral Analyzer 25547 | -1/Access | Used Subatomic Replicator to replicate Integrity Redistributor 25667 | -1/Access | Spotted B-99 Colossus 26252 | -1/Access | Spotted B-99 Colossus 26257 | -1/Access | Spotted B-99 Colossus 26381 | -1/Access | Identified exit to Command 26703 | -1/Access | Entered Command 26953 | -1/Command | First assault squad dispatched 26988 | -1/Command | Lost 3 allies 27021 | -1/Command | Disengaged cave seal 27021 | -1/Command | Assembled emerged from the dark tunnel 27093 | -1/Command | Lost 5 allies 27103 | -1/Command | Found Prototype Device 27111 | -1/Command | Identified Exp. Thermal Defense Suite 27192 | -1/Command | Build established: Alien-Gunner 27276 | -1/Command | Lost 3 allies 27344 | -1/Command | Destroyed 8 combat bots 27367 | -1/Command | Spotted Striker 27383 | -1/Command | Destroyed Striker 27389 | -1/Command | Spotted Alpha 7 27415 | -1/Command | Destroyed Alpha 7 27431 | -1/Command | Spotted M Guard 27440 | -1/Command | Spotted Combat Programmer 27440 | -1/Command | Spotted Combat Programmer 27478 | -1/Command | Destroyed Combat Programmer 27494 | -1/Command | Destroyed Combat Programmer 27519 | -1/Command | Spotted M Guard 27558 | -1/Command | Destroyed M Guard 27626 | -1/Command | Destroyed 11 combat bots 27764 | -1/Command | High security lockdown imminent 27810 | -1/Command | Destroyed 8 combat bots 27844 | -1/Command | High security lockdown engaged 27872 | -1/Command | Used Integrity Redistributor, redistributed integrity from core (-504) 27882 | -1/Command | Destroyed M Guard 27882 | -1/Command | All MAIN.C guards destroyed 27920 | -1/Command | Met MAIN.C 27927 | -1/Command | 0b10 Conduit disabled 27949 | -1/Command | Build established: Alien-Tank 27983 | -1/Command | System corruption reached 10% 28002 | -1/Command | Destroyed MAIN.C Shell 28005 | -1/Command | MAIN.C activated Command garrisons 28028 | -1/Command | Core integrity fell below 50% 28048 | -1/Command | Used Integrity Redistributor, redistributed integrity to core (+348) 28131 | -1/Command | Lost 9 parts (1p6u2w) 28135 | -1/Command | Spotted B-99 Colossus 28194 | -1/Command | Discovered new exit (range 9) 28195 | -1/Command | Lost 5 parts (1p1n1u2w) 28231 | -1/Command | Destroyed 8 combat bots 28245 | *** | Heading to fleet! Last Messages --------------- 28233_ Slug penetrates MAIN.C. 28236_ Slug penetrates G-73 Enforcer. 28237_ Slug penetrates B-74 Champion. 28237_ Slug penetrates Reinforced Barrier. 28238_ Imp. Targeting Computer destroyed. 28238_ System corrupted by crushing effect (+3). 28239_ Mni. Smartbomb Launcher destroyed. 28240_ R-10 Processor collects Adv. Heat Sink. 28242_ B-74 Champion destroyed. 28242_ Penetrated by Slug. 28242_ Slug penetrates G-73 Enforcer. 28242_ G-73 Enforcer suffers critical hit (Destroy). 28242_ Destroyed Unknown Energy Gun. 28242_ G-73 Enforcer knocked back. 28244_ LL:9EBEYPI8ZS8ER8>V/O1GMVUIVN:#Z:PQ7Q 28245_ R-10 Processor collects Unknown Ballistic Gun. 28245_ C-30 ARC bursts open, deploying its payload. 28245_ B-74 Champion unfolds itself. 28245_ G-73 Enforcer unfolds itself. 28245_ Slug penetrates G-73 Enforcer. Map ----- +----------------------------------------------------+ | ?????????????????????????????????????????????????? | | ?????????????????????????????????????????????????? | | ?????????????????????????????????????????????????? | | ?????????????????????????????????????????????????? | | ?????????????????????????????????????????????????? | | ?????????????????????????????????????????????????? | | ?????????????????????????????????????????????????? | | ?????????????????????????????????###+#???????????? | | ????????????????????????????????? #???????????? | | ????????????????????????????????? ????????????? | | ????????????????????????????????? ????????????? | | ?????????????????????????#+###### ?????????????? | | ?????????????????????????# #?????????????? | | ?????????????????????????# #?????????????? | | ?????????????????????????# #?????????????? | | ?????????????????????????+ #?????????????? | | ?????????????????????????# ^ #?????????????? | | ?????#######?????????????# #??####????????? | | ?????#"""""#?????????????# #? ?????????? | | ######""Y""#####?????????# # ???????????? | | ???????????? + ?????????????? | | # #??######????? #??????????????? | | # #??#= ######gg #??????????????? | | # #??# =##MgYRb % # #????????? | | # #### ##gggggYm / #????????? | | # / ##Y@H##### # #????????? | | # # ##!*!#???# # #????????? | | # [ # !!######???# #? #????????? | | #= ! #????????# #?? #????????? | | # ######## ### ##??######" #??? #????????? | | # ### ##???####"######### # #???###????????? | | # #?# #????# / " #??????????????? | | # ###+###### # + #??????????????? | | # ## # # # #??????????????? | | # + # ! #+####" %#????????????### | | # ## "" # # #"## #?????????""""" | | # ## "" # + #????????#"" | | # ## T" # # #????????#""""" | | # "" # ###### #????????#""""" | | # "" # #????######????????#" " | | ! + # #??????????????????#"" " | | # #=] #??????????????????#"" " | | # ## #=* #??????????????????# " " | | # ## ##############??????????????????# " | | # ### ######???????????????????????????????# " | | # #??##????????????????????????????????????#""""" | | # #????????????????????????????????????????#"" | | # ###### #?????????????????????????# | | # / !]! #?????????????????????????# | | # ###### !]! #???????????###+########### | +----------------------------------------------------+ Best States ------------- Heat Dissipation 93 Coolant Potential 100 Energy Generation 79 Energy Capacity 600 Matter Stores 300 Matter Capacity 300 Sight Range 23 Robot Scan Range 16 Terrain Scan Range 14 Terrain Scan Density 10 Jamming Range 16 Additional Mass Support 9 Armor Coverage 1500 Resistance: KI 30 Resistance: TH 30 Resistance: EM 25 Point Defense Rating 240 Evasion (%) 75 Targeting Accuracy 18 Core Analysis 8 Recoil Reduction 5 Salvage Targeting 4 Offensive Hacking 24 Item Schematics ----------------- Adv. Plasma Rifle | -2/Testing | Archive Exp. Transmission Jammer | -2/Testing | Archive Robot Schematics ------------------ G-67 Veteran | -2/Testing | Archive S-43 Plague | -2/Testing | Archive Fabricated ------------ Lgt. Regenerative Plating | x1 | -5/Factory Alien Tech Used ----------------- Core Expander Core Reset Matrix Spacefold Activator Integrated Thermoelectric Network Integrated Reactor LRC Storage LRC Insulator Subatomic Replicator Integrity Redistributor Achievements -------------- None Challenges ------------ None Game ------ Seed BombardmentBombDriver Manual? 0 Play Time 04:28:41 Cumulative 1414.9 hours Start 2024.08.07 @ 14:21:00 End 2024.08.07 @ 23:25:37 Sessions 5 Manual Loads 0 Difficulty Rogue Special Mode None Game No. 1025 Rogue 985 Adventurer 40 Explorer 0 Win Type 2 Total 178 Types 79/8/65/2/1/4/16/2/1 Lore% 92 Gallery% 95 Achievement% 86 Wizard Run 0 Options --------- Layout 0 ASCII 0 Keyboard 0 Movement Numpad Keybinds 0 Fullscreen 0 Font 20/Terminus Map View 76x50 Zoom Use 0% Tactical HUD 1 Map Filters NONE Filters NONE Steam 1 RUN: 5c999977-184b-4650-9637-b9d6ee89ce5c